fUST/lending_fUST_20250602
["ID","MTS","AMOUNT","RATE_DAILY","PERIOD"]
[363739593,1748855454472,-500.0,0.00019178,2]
[363739594,1748855454482,-500.0,0.00019178,2]
[363739595,1748855454492,-500.0,0.00019178,2]
[363739596,1748855454501,-500.0,0.00019178,2]
[363739597,1748855454509,-500.0,0.00019178,2]
[363739598,1748855454518,-500.0,0.00019178,2]
[363739599,1748855454526,-500.0,0.00019178,2]
[363739600,1748855454534,-500.0,0.00019178,2]
[363739601,1748855454543,-200.0,0.00019178,2]
[363739602,1748855454552,-500.0,0.00019178,2]
[363739603,1748855454562,-500.0,0.00019178,2]
[363739604,1748855454573,-500.0,0.00019178,2]
[363739605,1748855454583,-500.0,0.00019178,2]
[363739606,1748855454593,-500.0,0.00019178,2]
[363739607,1748855454607,-500.0,0.00019178,2]
[363739608,1748855454617,-500.0,0.00019178,2]
[363739609,1748855454627,-500.0,0.00019178,2]
[363739610,1748855454637,-500.0,0.00019178,2]
[363739611,1748855454647,-500.0,0.00019178,2]
[363739612,1748855454657,-500.0,0.00019178,2]
[363739613,1748855454667,-500.0,0.00019178,2]
[363739614,1748855454676,-500.0,0.00019178,2]
[363739615,1748855454685,-500.0,0.00019178,2]
[363739616,1748855454694,-948.58,0.00019178,2]
[363739617,1748855454703,-500.0,0.00019178,2]
[363739618,1748855454712,-500.0,0.00019178,2]
[363739619,1748855454721,-500.0,0.00019178,2]
[363739620,1748855454731,-466.91,0.00019178,2]
[363739621,1748855454741,-500.0,0.00019178,2]
[363739622,1748855454751,-2119.88,0.00019178,2]
[363739623,1748855454760,-2637.84,0.00019178,2]
[363739624,1748855454771,-430.0,0.00019178,2]
[363739625,1748855454781,-430.0,0.00019178,2]
[363739626,1748855454791,-549.39,0.00019178,2]
[363739627,1748855454801,-500.0,0.00019178,2]
[363739628,1748855454811,-500.0,0.00019178,2]
[363739629,1748855454821,-1678.0,0.00019178,2]
[363739630,1748855454831,-3462.76,0.00019178,2]
[363739631,1748855454842,-2200.48,0.00019178,2]
[363739632,1748855454854,-500.0,0.00019178,2]
[363739633,1748855454866,-157.31,0.00019178,2]
[363739634,1748855454877,-500.0,0.00019178,2]
[363739635,1748855454887,-500.0,0.00019178,2]
[363739636,1748855454898,-500.0,0.00019178,2]
[363739637,1748855454908,-500.0,0.00019178,2]
[363739638,1748855454918,-500.0,0.00019178,2]
[363739639,1748855454929,-500.0,0.00019178,2]
[363739640,1748855454940,-500.0,0.00019178,2]
[363739641,1748855454951,-500.0,0.00019178,2]
[363739642,1748855454961,-500.0,0.00019178,2]
[363739643,1748855454970,-500.0,0.00019178,2]
[363739644,1748855454980,-500.0,0.00019178,2]
[363739645,1748855454990,-500.0,0.00019178,2]
[363739646,1748855455000,-513.70111273,0.00019178,2]
[363739647,1748855455010,-151.0,0.00019178,2]
[363739648,1748855455020,-430.0,0.00019185,2]
[363739649,1748855455030,-913.57,0.00019185,2]
[363739650,1748855455040,-743.73,0.00019185,2]
[363739651,1748855455050,-430.0,0.00019185,2]
[363739652,1748855455060,-430.0,0.00019185,2]
[363739653,1748855455071,-430.0,0.00019185,2]
[363739654,1748855455082,-430.0,0.00019185,2]
[363739655,1748855455093,-430.0,0.00019185,2]
[363739656,1748855455105,-430.0,0.00019185,2]
[363739657,1748855455115,-430.0,0.00019185,2]
[363739658,1748855455126,-430.0,0.00019185,2]
[363739659,1748855455138,-430.0,0.00019185,2]
[363739660,1748855455148,-430.0,0.00019185,2]
[363739661,1748855455158,-2187.94,0.00019185,2]
[363739662,1748855455169,-430.0,0.00019185,2]
[363739663,1748855455179,-430.0,0.00019186,2]
[363739664,1748855455189,-430.0,0.00019186,2]
[363739665,1748855455199,-430.0,0.00019186,2]
[363739666,1748855455209,-440.76,0.00019186,2]
[363739667,1748855455219,-430.0,0.00019186,2]
[363739668,1748855455229,-430.0,0.00019186,2]
[363739669,1748855455239,-430.0,0.00019186,2]
[363739670,1748855455249,-346.36,0.00019186,2]
[363739671,1748855455259,-430.0,0.00019186,2]
[363739672,1748855455269,-430.0,0.00019186,2]
[363739673,1748855455279,-786.19,0.00019186,2]
[363739674,1748855455288,-532.68279812,0.00019186,2]
[363739675,1748855455298,-430.0,0.00019186,2]
[363739676,1748855455308,-198.80675126,0.00019186,2]
[363739677,1748855455317,-430.0,0.00019186,2]
[363739678,1748855455328,-430.0,0.00019186,2]
[363739679,1748855455340,-430.0,0.00019186,2]
[363739680,1748855455431,-430.0,0.00019186,2]
[363739681,1748855455442,-467.42,0.00019186,2]
[363739682,1748855455452,-1221.34,0.00019186,2]
[363739683,1748855455462,-430.0,0.00019186,2]
[363739684,1748855455472,-430.0,0.00019186,2]
[363739685,1748855455482,-430.0,0.00019186,2]
[363739686,1748855455492,-459.25718857,0.00019186,2]
[363739687,1748855455501,-430.0,0.00019186,2]
[363739688,1748855455512,-430.0,0.00019186,2]
[363739689,1748855455523,-642.42,0.00019186,2]
[363739690,1748855455533,-867.22,0.00019186,2]
[363739691,1748855455543,-430.0,0.00019186,2]
[363739692,1748855455552,-430.0,0.00019186,2]
[363739693,1748855455562,-430.0,0.00019186,2]
[363739694,1748855455573,-430.0,0.00019186,2]
[363739695,1748855455582,-324.77199809,0.00019186,2]
[363739696,1748855455592,-483.75,0.00019186,2]
[363739697,1748855455602,-1032.44,0.00019186,2]
[363739698,1748855455614,-9638.78,0.00019186,2]
[363739699,1748855455624,-567.58,0.00019186,2]
[363739700,1748855455633,-3131.92,0.00019186,2]
[363739701,1748855455642,-490.01,0.00019186,2]
[363739702,1748855455651,-452.44224005,0.00019186,2]
[363739703,1748855455660,-924.44,0.00019186,2]
[363739704,1748855455669,-1043.96,0.00019186,2]
[363739705,1748855455678,-430.0,0.00019186,2]
[363739706,1748855455687,-443.90257549,0.00019186,2]
[363739707,1748855455697,-683.24,0.00019186,2]
[363739708,1748855455706,-430.0,0.00019186,2]
[363739709,1748855455715,-509.59,0.00019188,2]
[363739710,1748855455723,-430.0,0.00019189,2]
[363739711,1748855455732,-1752.49892233,0.0001921,2]
[363739712,1748855455741,-157.1408538,0.00019233,2]
[363739713,1748855455750,-1200.0,0.00019316,2]
[363739714,1748855455759,-41218.01644711,0.00019329,2]
[363739715,1748855455768,-948.58,0.00019452,2]
[363739716,1748855455777,-466.91,0.00019452,2]
[363739717,1748855455785,-2637.84,0.00019452,2]
[363739718,1748855455794,-2119.88,0.00019452,2]
[363739719,1748855455802,-549.39,0.00019452,2]
[363739720,1748855455810,-1678.0,0.00019452,2]
[363739721,1748855455819,-3462.76,0.00019452,2]
[363739722,1748855455828,-2200.48,0.00019452,2]
[363739723,1748855455838,-430.0,0.00019459,2]
[363739724,1748855455848,-913.57,0.00019459,2]
[363739725,1748855455861,-743.73,0.00019459,2]
[363739726,1748855455871,-430.0,0.00019459,2]
[363739727,1748855455881,-430.0,0.00019459,2]
[363739728,1748855455891,-430.0,0.00019459,2]
[363739729,1748855455901,-430.0,0.00019459,2]
[363739730,1748855455910,-430.0,0.00019459,2]
[363739731,1748855455920,-430.0,0.00019459,2]
[363739732,1748855455930,-430.0,0.00019459,2]
[363739733,1748855455940,-151.0,0.00019459,2]
[363739734,1748855455950,-430.0,0.00019459,2]
[363739735,1748855455960,-430.0,0.00019459,2]
[363739736,1748855455969,-430.0,0.00019459,2]
[363739737,1748855455979,-2187.94,0.00019459,2]
[363739738,1748855455988,-430.0,0.00019459,2]
[363739739,1748855455998,-430.0,0.0001946,2]
[363739740,1748855456007,-440.76,0.0001946,2]
[363739741,1748855456017,-430.0,0.0001946,2]
[363739742,1748855456027,-430.0,0.0001946,2]
[363739743,1748855456037,-430.0,0.0001946,2]
[363739744,1748855456047,-786.19,0.0001946,2]
[363739745,1748855456056,-430.0,0.0001946,2]
[363739746,1748855456065,-430.0,0.0001946,2]
[363739747,1748855456076,-276.90369772,0.0001946,2]
[363739748,1748855456086,-430.0,0.0001946,2]
[363739749,1748855456096,-467.42,0.0001946,2]
[363739750,1748855456108,-1221.34,0.0001946,2]
[363739751,1748855456118,-430.0,0.0001946,2]
[363739752,1748855456127,-430.0,0.0001946,2]
[363739753,1748855456137,-430.0,0.0001946,2]
[363739754,1748855456147,-430.0,0.0001946,2]
[363739755,1748855456157,-430.0,0.0001946,2]
[363739756,1748855456168,-642.42,0.0001946,2]
[363739757,1748855456177,-867.22,0.0001946,2]
[363739758,1748855456187,-430.0,0.0001946,2]
[363739759,1748855456197,-430.0,0.0001946,2]
[363739760,1748855456207,-430.0,0.0001946,2]
[363739761,1748855456216,-430.0,0.0001946,2]
[363739762,1748855456226,-483.75,0.0001946,2]
[363739763,1748855456236,-1032.44,0.0001946,2]
[363739764,1748855456246,-9638.78,0.0001946,2]
[363739765,1748855456256,-567.58,0.0001946,2]
[363739766,1748855456266,-3131.92,0.0001946,2]
[363739767,1748855456275,-490.01,0.0001946,2]
[363739768,1748855456286,-924.44,0.0001946,2]
[363739769,1748855456296,-1043.96,0.0001946,2]
[363739770,1748855456306,-683.24,0.0001946,2]
[363739771,1748855456316,-155.46,0.0001946,2]
[363739772,1748855456326,-509.59,0.00019462,2]
[363739773,1748855456335,-430.0,0.00019463,2]
[363739774,1748855456346,-1752.49892233,0.00019486,2]
[363739775,1748855456362,-714.09,0.00019518,2]
[363739776,1748855456372,-306.8507996,0.00019571,2]
[363739777,1748855456382,-500.0,0.00019571,2]
[363739778,1748855456393,-360.08328903,0.00019571,2]
[363739779,1748855456403,-162.009,0.00019655,2]
[363739780,1748855456412,-2500.0,0.00019722,2]
[363739781,1748855456423,-948.58,0.00019726,2]
[363739782,1748855456434,-466.91,0.00019726,2]
[363739783,1748855456443,-2119.88,0.00019726,2]
[363739784,1748855456453,-2637.84,0.00019726,2]
[363739785,1748855456463,-549.39,0.00019726,2]
[363739786,1748855456473,-1678.0,0.00019726,2]
[363739787,1748855456483,-3462.76,0.00019726,2]
[363739788,1748855456492,-2200.48,0.00019726,2]
[363739789,1748855456502,-430.0,0.00019733,2]
[363739790,1748855456511,-913.57,0.00019733,2]
[363739791,1748855456523,-743.73,0.00019733,2]
[363739792,1748855456533,-430.0,0.00019733,2]
[363739793,1748855456543,-430.0,0.00019733,2]
[363739794,1748855456554,-430.0,0.00019733,2]
[363739795,1748855456563,-430.0,0.00019733,2]
[363739796,1748855456572,-430.0,0.00019733,2]
[363739797,1748855456582,-430.0,0.00019733,2]
[363739798,1748855456591,-430.0,0.00019733,2]
[363739799,1748855456602,-2187.94,0.00019733,2]
[363739800,1748855456613,-430.0,0.00019733,2]
[363739801,1748855456623,-440.76,0.00019734,2]
[363739802,1748855456633,-430.0,0.00019734,2]
[363739803,1748855456643,-430.0,0.00019734,2]
[363739804,1748855456720,-430.0,0.00019734,2]
[363739805,1748855456731,-786.19,0.00019734,2]
[363739806,1748855456741,-430.0,0.00019734,2]
[363739807,1748855456751,-430.0,0.00019734,2]
[363739808,1748855456761,-430.0,0.00019734,2]
[363739809,1748855456771,-467.42,0.00019734,2]
[363739810,1748855456780,-1221.34,0.00019734,2]
[363739811,1748855456790,-430.0,0.00019734,2]
[363739812,1748855456800,-430.0,0.00019734,2]
[363739813,1748855456810,-430.0,0.00019734,2]
[363739814,1748855456820,-642.42,0.00019734,2]
[363739815,1748855456829,-867.22,0.00019734,2]
[363739816,1748855456840,-430.0,0.00019734,2]
[363739817,1748855456849,-430.0,0.00019734,2]
[363739818,1748855456860,-430.0,0.00019734,2]
[363739819,1748855456870,-483.75,0.00019734,2]
[363739820,1748855456881,-1032.44,0.00019734,2]
[363739821,1748855456891,-9638.78,0.00019734,2]
[363739822,1748855456901,-567.58,0.00019734,2]
[363739823,1748855456910,-3131.92,0.00019734,2]
[363739824,1748855456919,-490.01,0.00019734,2]
[363739825,1748855456928,-924.44,0.00019734,2]
[363739826,1748855456938,-1043.96,0.00019734,2]
[363739827,1748855456948,-683.24,0.00019734,2]
[363739828,1748855456957,-152.512802,0.00019735,2]
[363739829,1748855456967,-151.0,0.00019735,2]
[363739830,1748855456978,-151.0,0.00019735,2]
[363739831,1748855456988,-590.370295,0.00019735,2]
[363739832,1748855456998,-590.370295,0.00019735,2]
[363739833,1748855457008,-509.59,0.00019736,2]
[363739834,1748855457018,-160.0,0.00019736,2]
[363739835,1748855457028,-430.0,0.00019737,2]
[363739836,1748855457038,-1752.49892233,0.00019762,2]
[363739837,1748855457048,-207.4,0.00019766,2]
[363739838,1748855457058,-273.13548576,0.00019766,2]
[363739839,1748855457068,-151.0,0.00019766,2]
[363739840,1748855457077,-151.47158686,0.00019766,2]
[363739841,1748855457087,-500.0,0.00019766,2]
[363739842,1748855457097,-500.0,0.00019766,2]
[363739843,1748855457108,-500.0,0.00019766,2]
[363739844,1748855457117,-500.0,0.00019766,2]
[363739845,1748855457127,-500.0,0.00019766,2]
[363739846,1748855457138,-500.0,0.00019766,2]
[363739847,1748855457147,-500.0,0.00019766,2]
[363739848,1748855457157,-500.0,0.00019766,2]
[363739849,1748855457167,-500.0,0.00019766,2]
[363739850,1748855457176,-500.0,0.00019766,2]
[363739851,1748855457186,-500.0,0.00019766,2]
[363739852,1748855457195,-500.0,0.00019766,2]
[363739853,1748855457205,-500.0,0.00019766,2]
[363739854,1748855457214,-500.0,0.00019766,2]
[363739855,1748855457223,-500.0,0.00019766,2]
[363739856,1748855457233,-500.0,0.00019766,2]
[363739857,1748855457243,-500.0,0.00019766,2]
[363739858,1748855457252,-500.0,0.00019766,2]
[363739859,1748855457260,-500.0,0.00019766,2]
[363739860,1748855457269,-500.0,0.00019766,2]
[363739861,1748855457277,-500.0,0.00019766,2]
[363739862,1748855457285,-500.0,0.00019766,2]
[363739863,1748855457293,-500.0,0.00019766,2]
[363739864,1748855457301,-500.0,0.00019766,2]
[363739865,1748855457310,-500.0,0.00019766,2]
[363739866,1748855457320,-500.0,0.00019766,2]
[363739867,1748855457329,-5000.0,0.00019766,2]
[363739868,1748855457339,-500.0,0.00019766,2]
[363739869,1748855457351,-500.0,0.00019766,2]
[363739870,1748855457364,-500.0,0.00019766,2]
[363739871,1748855457374,-500.0,0.00019766,2]
[363739872,1748855457384,-300.0,0.00019766,2]
[363739873,1748855457395,-300.0,0.00019766,2]
[363739874,1748855457404,-300.0,0.00019766,2]
[363739875,1748855457413,-302.91049612,0.00019766,2]
[363739876,1748855457422,-500.0,0.0001978,2]
[363739877,1748855457432,-593.6840161,0.00019844,2]
[363739878,1748855457443,-1000.0,0.0001998,2]
[363739879,1748855457453,-119332.0,0.0002,2]
[363739880,1748855457463,-7008.01206819,0.0002,2]
[363739881,1748855457473,-948.58,0.0002,2]
[363739882,1748855457483,-466.91,0.0002,2]
[363739883,1748855457493,-2119.88,0.0002,2]
[363739884,1748855457503,-2637.84,0.0002,2]
[363739885,1748855457512,-549.39,0.0002,2]
[363739886,1748855457523,-1678.0,0.0002,2]
[363739887,1748855457533,-3462.76,0.0002,2]
[363739888,1748855457543,-2200.48,0.0002,2]
[363739889,1748855457553,-4000.0,0.0002,4]
[363739890,1748855457564,-430.0,0.00020007,2]
[363739891,1748855457573,-913.57,0.00020007,2]
[363739892,1748855457583,-743.73,0.00020007,2]
[363739893,1748855457593,-430.0,0.00020007,2]
[363739894,1748855457603,-430.0,0.00020007,2]
[363739895,1748855457613,-430.0,0.00020007,2]
[363739896,1748855457622,-430.0,0.00020007,2]
[363739897,1748855457631,-430.0,0.00020007,2]
[363739898,1748855457641,-430.0,0.00020007,2]
[363739899,1748855457651,-430.0,0.00020007,2]
[363739900,1748855457661,-2187.94,0.00020007,2]
[363739901,1748855457671,-440.76,0.00020008,2]
[363739902,1748855457680,-430.0,0.00020008,2]
[363739903,1748855457690,-151.0,0.00020008,2]
[363739904,1748855457700,-430.0,0.00020008,2]
[363739905,1748855457710,-786.19,0.00020008,2]
[363739906,1748855457720,-151.0,0.00020008,2]
[363739907,1748855457730,-200.051556,0.00020008,2]
[363739908,1748855457740,-430.0,0.00020008,2]
[363739909,1748855457750,-430.0,0.00020008,2]
[363739910,1748855457759,-467.42,0.00020008,2]
[363739911,1748855457769,-1221.34,0.00020008,2]
[363739912,1748855457779,-430.0,0.00020008,2]
[363739913,1748855457789,-430.0,0.00020008,2]
[363739914,1748855457799,-151.0,0.00020008,2]
[363739915,1748855457808,-450.35,0.00020008,2]
[363739916,1748855457818,-280.838181,0.00020008,2]
[363739917,1748855457828,-642.42,0.00020008,2]
[363739918,1748855457903,-867.22,0.00020008,2]
[363739919,1748855457918,-430.0,0.00020008,2]
[363739920,1748855457927,-430.0,0.00020008,2]
[363739921,1748855457937,-483.75,0.00020008,2]
[363739922,1748855457947,-1032.44,0.00020008,2]
[363739923,1748855457957,-154.932031,0.00020008,2]
[363739924,1748855457968,-9638.78,0.00020008,2]
[363739925,1748855457977,-567.58,0.00020008,2]
[363739926,1748855457987,-3131.92,0.00020008,2]
[363739927,1748855457998,-490.01,0.00020008,2]
[363739928,1748855458008,-924.44,0.00020008,2]
[363739929,1748855458017,-1043.96,0.00020008,2]
[363739930,1748855458028,-683.24,0.00020008,2]
[363739931,1748855458038,-151.600532,0.00020009,2]
[363739932,1748855458048,-509.59,0.0002001,2]
[363739933,1748855458058,-430.0,0.00020011,2]
[363739934,1748855458069,-1752.49892233,0.00020038,2]
[363739935,1748855458079,-1000.0,0.00020119,2]
[363739936,1748855458092,-1200.0,0.00020129,2]
[363739937,1748855458102,-12668.79298183,0.00020146,2]
[363739938,1748855458113,-423.56953423,0.00020146,2]
[363739939,1748855458123,-160.0,0.00020146,2]
[363739940,1748855458134,-160.0,0.00020146,2]
[363739941,1748855458144,-229.39799938,0.00020146,2]
[363739942,1748855458154,-314.91466509,0.00020147,2]
[363739943,1748855458165,-842.5625,0.00020147,2]
[363739944,1748855458174,-152.28319406,0.00020217,2]
[363739945,1748855458184,-153.59804604,0.00020217,2]
[363739946,1748855458194,-151.0,0.00020217,2]
[363739947,1748855458203,-500.0,0.00020217,2]
[363739948,1748855458213,-151.0,0.00020217,2]
[363739949,1748855458223,-500.0,0.00020217,2]
[363739950,1748855458233,-153.48593424,0.00020244,2]
[363739951,1748855458242,-629.37120614,0.00020244,2]
[363739952,1748855458252,-151.0,0.00020244,2]
[363739953,1748855458263,-500.0,0.00020244,2]
[363739954,1748855458272,-2548.39645406,0.0002027,2]
[363739955,1748855458282,-151.0,0.00020272,2]
[363739956,1748855458292,-500.0,0.00020272,2]
[363739957,1748855458302,-948.58,0.00020273,2]
[363739958,1748855458312,-466.91,0.00020273,2]
[363739959,1748855458322,-2119.88,0.00020273,2]
[363739960,1748855458332,-2637.84,0.00020273,2]
[363739961,1748855458342,-549.39,0.00020273,2]
[363739962,1748855458357,-1678.0,0.00020273,2]
[363739963,1748855458367,-3462.76,0.00020273,2]
[363739964,1748855458378,-2200.48,0.00020273,2]
[363739965,1748855458389,-430.0,0.00020281,2]
[363739966,1748855458399,-913.57,0.00020281,2]
[363739967,1748855458409,-743.73,0.00020281,2]
[363739968,1748855458419,-430.0,0.00020281,2]
[363739969,1748855458429,-430.0,0.00020281,2]
[363739970,1748855458439,-430.0,0.00020281,2]
[363739971,1748855458462,-430.0,0.00020281,2]
[363739972,1748855458481,-430.0,0.00020281,2]
[363739973,1748855458501,-430.0,0.00020281,2]
[363739974,1748855458521,-429.71539997,0.00020281,2]
[363739975,1748855458542,-2187.94,0.00020281,2]
[363739976,1748855458560,-440.76,0.00020282,2]
[363739977,1748855458579,-430.0,0.00020282,2]
[363739978,1748855458594,-786.19,0.00020282,2]
[363739979,1748855458616,-430.0,0.00020282,2]
[363739980,1748855458637,-298.08,0.00020282,2]
[363739981,1748855458656,-467.42,0.00020282,2]
[363739982,1748855458671,-1221.34,0.00020282,2]
[363739983,1748855458693,-552.88,0.00020282,2]
[363739984,1748855458708,-430.0,0.00020282,2]
[363739985,1748855458724,-642.42,0.00020282,2]
[363739986,1748855458737,-867.22,0.00020282,2]
[363739987,1748855458753,-550.94303397,0.00020282,2]
[363739988,1748855458766,-483.75,0.00020282,2]
[363739989,1748855458781,-1032.44,0.00020282,2]
[363739990,1748855458797,-9638.78,0.00020282,2]
[363739991,1748855458811,-567.58,0.00020282,2]
[363739992,1748855458826,-3131.92,0.00020282,2]
[363739993,1748855458841,-490.01,0.00020282,2]
[363739994,1748855458857,-924.44,0.00020282,2]
[363739995,1748855458872,-1043.96,0.00020282,2]
[363739996,1748855458887,-683.24,0.00020282,2]
[363739997,1748855458901,-509.59,0.00020284,2]
[363739998,1748855458915,-430.0,0.00020285,2]
[363739999,1748855458931,-151.0,0.00020299,2]
[363740000,1748855458946,-500.0,0.00020299,2]
[363740001,1748855458960,-1752.49892233,0.00020314,3]
[363740002,1748855458975,-5000.0,0.00020314,2]
[363740003,1748855458989,-209.21679431,0.00020327,2]
[363740004,1748855459004,-500.0,0.00020327,2]
[363740005,1748855459018,-1081.0,0.00020352,2]
[363740006,1748855459032,-153.84818123,0.00020352,2]
[363740007,1748855459045,-151.0,0.00020352,2]
[363740008,1748855459060,-151.0,0.00020352,2]
[363740009,1748855459075,-152.60665104,0.00020352,2]
[363740010,1748855459090,-152.60193509,0.00020352,2]
[363740011,1748855459105,-491.55432582,0.00020354,2]
[363740012,1748855459121,-1081.0,0.00020379,2]
[363740013,1748855459133,-151.0,0.00020379,2]
[363740014,1748855459142,-151.0,0.00020379,2]
[363740015,1748855459152,-1000.0,0.0002038,2]
[363740016,1748855459161,-155.0,0.00020396,2]
[363740017,1748855459171,-1081.0,0.00020407,2]
[363740018,1748855459181,-202.33080201,0.00020407,2]
[363740019,1748855459190,-213.92585889,0.00020407,2]
[363740020,1748855459200,-1081.0,0.00020434,2]
[363740021,1748855459210,-151.0,0.00020452,2]
[363740022,1748855459220,-1081.0,0.00020462,2]
[363740023,1748855459373,-1081.0,0.00020489,2]
[363740024,1748855459395,-151.0,0.00020489,2]
[363740025,1748855459405,-158.08511,0.00020489,2]
[363740026,1748855459415,-280.23580309,0.00020489,2]
[363740027,1748855459424,-3000.0,0.000205,2]
[363740028,1748855459434,-3000.0,0.0002051,2]
[363740029,1748855459444,-1081.0,0.00020516,2]
[363740030,1748855459454,-3000.0,0.0002052,2]
[363740031,1748855459463,-3000.0,0.0002053,2]
[363740032,1748855459473,-151.0,0.0002053,2]
[363740033,1748855459483,-590.370295,0.0002053,2]
[363740034,1748855459493,-590.370295,0.0002053,2]
[363740035,1748855459502,-3000.0,0.0002054,2]
[363740036,1748855459512,-1081.0,0.00020544,2]
[363740037,1748855459522,-623.03304999,0.00020546,2]
[363740038,1748855459531,-682.2,0.00020547,2]
[363740039,1748855459541,-948.58,0.00020547,2]
[363740040,1748855459551,-466.91,0.00020547,2]
[363740041,1748855459561,-2119.88,0.00020547,2]
[363740042,1748855459570,-2637.84,0.00020547,2]
[363740043,1748855459580,-549.39,0.00020547,2]
[363740044,1748855459590,-1678.0,0.00020547,2]
[363740045,1748855459599,-3462.76,0.00020547,2]
[363740046,1748855459610,-2200.48,0.00020547,2]
[363740047,1748855459620,-3000.0,0.0002055,2]
[363740048,1748855459629,-430.0,0.00020555,2]
[363740049,1748855459638,-913.57,0.00020555,2]
[363740050,1748855459648,-743.73,0.00020555,2]
[363740051,1748855459658,-476.57376914,0.00020555,2]
[363740052,1748855459667,-430.0,0.00020555,2]
[363740053,1748855459678,-430.0,0.00020555,2]
[363740054,1748855459688,-430.0,0.00020555,2]
[363740055,1748855459697,-430.0,0.00020555,2]
[363740056,1748855459706,-272.21923109,0.00020555,2]
[363740057,1748855459716,-2187.94,0.00020555,2]
[363740058,1748855459725,-440.76,0.00020556,2]
[363740059,1748855459735,-430.0,0.00020556,2]
[363740060,1748855459746,-786.19,0.00020556,2]
[363740061,1748855459756,-430.0,0.00020556,2]
[363740062,1748855459765,-467.42,0.00020556,2]
[363740063,1748855459775,-1221.34,0.00020556,2]
[363740064,1748855459785,-430.0,0.00020556,2]
[363740065,1748855459794,-642.42,0.00020556,2]
[363740066,1748855459803,-867.22,0.00020556,2]
[363740067,1748855459813,-483.75,0.00020556,2]
[363740068,1748855459822,-1032.44,0.00020556,2]
[363740069,1748855459833,-9638.78,0.00020556,2]
[363740070,1748855459843,-567.58,0.00020556,2]
[363740071,1748855459852,-3131.92,0.00020556,2]
[363740072,1748855459863,-490.01,0.00020556,2]
[363740073,1748855459872,-924.44,0.00020556,2]
[363740074,1748855459882,-1043.96,0.00020556,2]
[363740075,1748855459891,-683.24,0.00020556,2]
[363740076,1748855459901,-509.59,0.00020558,2]
[363740077,1748855459911,-430.0,0.00020559,2]
[363740078,1748855459921,-3000.0,0.0002056,2]
[363740079,1748855459930,-3000.0,0.0002057,2]
[363740080,1748855459940,-1081.0,0.00020571,2]
[363740081,1748855459949,-3000.0,0.0002058,2]
[363740082,1748855459959,-1752.49892233,0.0002059,3]
[363740083,1748855459969,-3000.0,0.0002059,2]
[363740084,1748855459979,-1081.0,0.00020599,2]
[363740085,1748855459989,-2543.68,0.000206,2]
[363740086,1748855459998,-151.0,0.000206,3]
[363740087,1748855460008,-5538.820286,0.000206,2]
[363740088,1748855460018,-1081.0,0.00020626,2]
[363740089,1748855460028,-1081.0,0.00020653,2]
[363740090,1748855460038,-1502.19044311,0.00020667,2]
[363740091,1748855460048,-1081.0,0.00020681,2]
[363740092,1748855460058,-1081.0,0.00020708,2]